bitfinex/quotes_BTCUSD_20230101
["timestamp","ask_amount","ask_price","bid_price","bid_amount"]
[1672587580383,0.98590439,16562.0,16561.0,0.15238086]
[1672587581546,1.60692639,16562.0,16561.0,0.15238086]
[1672587581807,1.60692639,16562.0,16561.0,0.27506694]
[1672587582484,1.60692639,16562.0,16561.0,0.27495681]
[1672587582736,0.98590439,16562.0,16561.0,0.27495681]
[1672587586206,1.60692639,16562.0,16561.0,0.27495681]
[1672587586462,1.60692639,16562.0,16561.0,0.15227073]
[1672587587459,0.98590439,16562.0,16561.0,0.15227073]
[1672587587705,1.60692639,16562.0,16561.0,0.15227073]
[1672587589290,0.98679291,16562.0,16561.0,0.15227073]
[1672587589506,0.98590439,16562.0,16561.0,0.15227073]
[1672587602347,0.98679291,16562.0,16561.0,0.15227073]
[1672587602595,0.98590439,16562.0,16561.0,0.15227073]
[1672587603477,0.98679291,16562.0,16561.0,0.15227073]
[1672587603724,0.98679291,16562.0,16561.0,0.15220261]
[1672587604162,0.98590439,16562.0,16561.0,0.15220261]
[1672587605396,0.98679291,16562.0,16561.0,0.15220261]
[1672587605637,0.98590439,16562.0,16561.0,0.15220261]
[1672587606626,0.98679291,16562.0,16561.0,0.15220261]
[1672587606888,0.98590439,16562.0,16561.0,0.15220261]
[1672587610683,0.98679291,16562.0,16561.0,0.15220261]
[1672587610930,0.98590439,16562.0,16561.0,0.15220261]
[1672587617698,0.98590439,16562.0,16561.0,0.25965861]
[1672587619240,0.98590439,16562.0,16561.0,0.15220261]
[1672587620435,0.98590439,16562.0,16561.0,0.25965861]
[1672587620922,0.98590439,16562.0,16561.0,0.15220261]
[1672587621649,0.98590439,16562.0,16561.0,0.25965861]
[1672587621917,0.98590439,16562.0,16561.0,0.15220261]
[1672587623421,0.98590439,16562.0,16561.0,0.25965861]
[1672587623666,0.98679291,16562.0,16561.0,0.25965861]
[1672587623917,0.98590439,16562.0,16561.0,0.25965861]
[1672587624790,0.98590439,16562.0,16561.0,0.15220261]
[1672587625298,0.98590439,16562.0,16561.0,0.25965861]
[1672587626025,0.98590439,16562.0,16561.0,0.25954983]
[1672587626266,0.98679291,16562.0,16561.0,0.25954983]
[1672587626525,0.98590439,16562.0,16561.0,0.25954983]
[1672587627257,0.98679291,16562.0,16561.0,0.25954983]
[1672587627519,0.98679291,16562.0,16561.0,0.15209383]
[1672587628286,0.98590439,16562.0,16561.0,0.15209383]
[1672587630874,0.98679291,16562.0,16561.0,0.15209383]
[1672587631109,0.98590439,16562.0,16561.0,0.15209383]
[1672587634257,1.60692639,16562.0,16561.0,0.15209383]
[1672587634501,0.98590439,16562.0,16561.0,0.15209383]
[1672587645608,0.98590439,16562.0,16561.0,0.25954983]
[1672587645851,0.98590439,16562.0,16561.0,0.15209383]
[1672587646096,0.98590439,16562.0,16561.0,0.25954983]
[1672587647131,0.98590439,16562.0,16561.0,0.15209383]
[1672587648980,0.98679291,16562.0,16561.0,0.15209383]
[1672587649749,0.98590439,16562.0,16561.0,0.15200293]
[1672587650248,0.98679291,16562.0,16561.0,0.15200293]
[1672587650752,0.98590439,16562.0,16561.0,0.15200293]
[1672587651254,0.98679291,16562.0,16561.0,0.15200293]
[1672587651500,0.98590439,16562.0,16561.0,0.15200293]
[1672587652333,0.98679291,16562.0,16561.0,0.15200293]
[1672587652574,0.98590439,16562.0,16561.0,0.15200293]
[1672587655286,1.60692639,16562.0,16561.0,0.15200293]
[1672587655795,0.98590439,16562.0,16561.0,0.15200293]
[1672587656048,0.98590439,16562.0,16561.0,0.25945893]
[1672587656295,0.98590439,16562.0,16561.0,0.15200293]
[1672587657269,1.60692639,16562.0,16561.0,0.15200293]
[1672587657519,0.98590439,16562.0,16561.0,0.15200293]
[1672587662143,0.61164965,16562.0,16561.0,0.27465122]
[1672587662386,0.61164965,16563.0,16561.0,1.32893932]
[1672587662658,1.01539792,16563.0,16561.0,1.93276732]
[1672587663681,0.54392169,16562.0,16561.0,1.93276732]
[1672587663936,0.54392169,16562.0,16561.0,1.87176732]
[1672587664690,0.54392169,16562.0,16561.0,1.93276732]
[1672587665191,0.54392169,16562.0,16561.0,2.04022332]
[1672587666962,0.54392169,16562.0,16561.0,2.64405132]
[1672587667458,0.54392169,16562.0,16561.0,2.53659532]
[1672587668210,0.94766996,16563.0,16561.0,2.53659532]
[1672587668427,0.94766996,16563.0,16562.0,0.25365953]
[1672587668688,0.94766996,16563.0,16562.0,0.55365953]
[1672587668981,0.94766996,16563.0,16562.0,0.25365953]
[1672587669235,0.95666996,16563.0,16562.0,0.25365953]
[1672587669734,0.95666996,16563.0,16562.0,0.25357191]
[1672587669999,0.41274827,16563.0,16562.0,0.25357191]
[1672587670252,0.40374827,16563.0,16562.0,0.25357191]
[1672587670499,0.41274827,16563.0,16562.0,0.25357191]
[1672587670751,0.40374827,16563.0,16562.0,0.25357191]
[1672587671001,0.40374827,16563.0,16562.0,0.31457191]
[1672587671993,0.6126431,16564.0,16562.0,0.31457191]
[1672587672249,1.03175845,16564.0,16562.0,0.31457191]
[1672587673263,1.03175845,16564.0,16562.0,0.25357191]
[1672587673511,1.04075845,16564.0,16562.0,0.25357191]
[1672587674023,1.04075845,16564.0,16561.0,1.84448701]
[1672587674265,0.54353633,16562.0,16561.0,1.84448701]
[1672587674514,0.54353633,16562.0,16561.0,1.40267375]
[1672587674759,0.54353633,16562.0,16561.0,1.84448701]
[1672587675018,0.54353633,16562.0,16561.0,1.23201217]
[1672587675274,0.54353633,16563.0,16561.0,1.23201217]
[1672587675534,0.54353633,16563.0,16562.0,0.44364141]
[1672587676565,1.03175845,16564.0,16562.0,0.44364141]
[1672587676867,1.03175845,16564.0,16562.0,0.50464141]
[1672587677571,1.03175845,16564.0,16562.0,0.44364141]
[1672587677823,1.04075845,16564.0,16562.0,0.44364141]
[1672587678315,0.54351675,16563.0,16562.0,0.44364141]
[1672587678565,0.54351675,16563.0,16562.0,0.61120677]
[1672587679824,0.54351675,16563.0,16562.0,0.67220677]
[1672587683708,1.03175845,16564.0,16562.0,0.67220677]
[1672587685002,1.03175845,16564.0,16562.0,0.61120677]
[1672587685489,0.621022,16563.0,16562.0,0.61120677]
[1672587685770,1.03264697,16564.0,16562.0,0.61120677]
[1672587685993,1.03175845,16564.0,16562.0,0.61120677]
[1672587686265,0.621022,16563.0,16562.0,0.61120677]
[1672587686511,1.03175845,16564.0,16562.0,0.61120677]
[1672587687264,1.04075845,16564.0,16562.0,0.61120677]
[1672587688022,0.621022,16563.0,16562.0,0.61120677]
[1672587688322,1.04075845,16564.0,16562.0,0.61120677]
[1672587689011,1.04075845,16564.0,16562.0,0.44364141]
[1672587689766,1.03175845,16564.0,16562.0,0.44364141]
[1672587690019,1.03175845,16564.0,16562.0,0.50464141]
[1672587690277,1.03175845,16564.0,16562.0,0.44364141]
[1672587690527,1.04075845,16564.0,16562.0,0.44364141]
[1672587690781,1.04164697,16564.0,16562.0,0.44364141]
[1672587691774,1.04075845,16564.0,16562.0,0.44364141]
[1672587692268,0.621022,16563.0,16562.0,0.44364141]
[1672587692508,1.04164697,16564.0,16562.0,0.61120677]
[1672587692753,1.04164697,16564.0,16562.0,0.44364141]
[1672587693003,0.621022,16563.0,16562.0,0.44364141]
[1672587693281,0.621022,16563.0,16562.0,0.44357555]
[1672587693532,1.03175845,16564.0,16562.0,0.50457555]
[1672587694026,0.621022,16563.0,16562.0,0.50457555]
[1672587694262,1.03175845,16564.0,16562.0,0.67823432]
[1672587694757,0.621022,16563.0,16562.0,0.67823432]
[1672587695012,1.03175845,16564.0,16562.0,0.67823432]
[1672587695525,0.621022,16563.0,16562.0,0.67823432]
[1672587695782,1.03175845,16564.0,16562.0,0.61723432]
[1672587696040,1.04075845,16564.0,16562.0,0.61723432]
[1672587696303,1.03175845,16564.0,16562.0,0.61723432]
[1672587696534,0.621022,16563.0,16562.0,0.67823432]
[1672587696779,1.63547845,16564.0,16562.0,0.44357555]
[1672587697312,1.23267165,16563.0,16562.0,0.44357555]
[1672587697836,0.61164965,16563.0,16562.0,0.44357555]
[1672587698082,1.64447845,16564.0,16562.0,0.44357555]
[1672587698326,1.63547845,16564.0,16562.0,0.88538881]
[1672587698565,1.03175845,16564.0,16562.0,0.94638881]
[1672587698807,1.03175845,16564.0,16562.0,0.88538881]
[1672587699053,1.04075845,16564.0,16562.0,0.88538881]
[1672587699315,0.621022,16563.0,16562.0,0.88538881]
[1672587699559,0.621022,16563.0,16562.0,0.61113432]
[1672587699560,0.61164965,16563.0,16562.0,0.61113432]
[1672587699803,1.04075845,16564.0,16562.0,0.61113432]
[1672587700069,0.61164965,16563.0,16562.0,1.05294758]
[1672587700319,0.61164965,16563.0,16562.0,0.61113432]
[1672587700560,1.03175845,16564.0,16562.0,0.61113432]
[1672587700815,1.03175845,16564.0,16562.0,1.05294758]
[1672587701322,1.03175845,16564.0,16562.0,1.11394758]
[1672587701564,1.03175845,16564.0,16562.0,1.05294758]
[1672587701807,1.04075845,16564.0,16562.0,1.05294758]
[1672587702052,0.621022,16563.0,16562.0,1.05294758]
[1672587702296,0.621022,16563.0,16562.0,0.61113432]
[1672587702548,1.04075845,16564.0,16562.0,0.61113432]
[1672587702805,1.04075845,16564.0,16562.0,1.05294758]
[1672587703057,1.03175845,16564.0,16562.0,1.05294758]
[1672587703555,1.03175845,16564.0,16562.0,1.11394758]
[1672587704298,1.03164188,16564.0,16563.0,0.11139476]
[1672587704548,1.04064188,16564.0,16563.0,0.11139476]
[1672587704808,1.039765,16564.0,16563.0,0.11139476]
[1672587705314,1.030765,16564.0,16563.0,0.11139476]
[1672587705565,1.039765,16564.0,16563.0,0.11139476]
[1672587705812,1.04065352,16564.0,16563.0,0.11139476]
[1672587706081,1.039765,16564.0,16562.0,0.61113432]
[1672587707324,0.61164965,16563.0,16562.0,0.61113432]
[1672587707569,1.030765,16564.0,16562.0,0.61113432]
[1672587707812,1.039765,16564.0,16562.0,0.61113432]
[1672587708067,0.61164965,16563.0,16562.0,0.61113432]
[1672587708390,0.61164965,16563.0,16562.0,0.67213432]
[1672587708566,0.61164965,16563.0,16562.0,0.61113432]
[1672587709550,0.61164965,16563.0,16562.0,0.67213432]
[1672587710312,1.030765,16564.0,16562.0,0.67213432]
[1672587711067,1.030765,16564.0,16562.0,0.61113432]
[1672587711311,0.009,16563.0,16562.0,0.61113432]
[1672587711573,1.030765,16564.0,16562.0,0.61113432]
[1672587711832,1.039765,16564.0,16562.0,0.61113432]
[1672587719970,1.039765,16564.0,16562.0,1.05294758]
[1672587720472,1.039765,16564.0,16562.0,0.61113432]
[1672587722462,1.039765,16564.0,16562.0,1.05294758]
[1672587724471,1.039765,16564.0,16562.0,0.61113432]
[1672587724732,1.039765,16564.0,16562.0,1.05294758]
[1672587727034,1.04065352,16564.0,16562.0,0.61113432]
[1672587727327,1.039765,16564.0,16562.0,0.61113432]
[1672587727573,1.039765,16564.0,16562.0,1.05294758]
[1672587728815,1.039765,16564.0,16562.0,1.05282839]
[1672587729863,0.54394474,16563.0,16562.0,1.05282839]
[1672587730372,0.54394474,16563.0,16562.0,1.65661939]
[1672587732150,0.54394474,16563.0,16562.0,2.32141039]
[1672587735424,0.54394474,16563.0,16562.0,2.42885439]
[1672587736902,0.54394474,16563.0,16562.0,2.32141039]
[1672587737149,0.54394474,16563.0,16562.0,2.42885539]
[1672587737407,0.54394474,16564.0,16563.0,0.5]
[1672587737655,0.54394474,16564.0,16563.0,1.2648888]
[1672587738145,0.54394474,16564.0,16563.0,0.82307554]
[1672587738659,0.55294474,16564.0,16563.0,0.82307554]
[1672587738903,0.55294474,16564.0,16563.0,1.2648888]
[1672587739150,0.55294474,16564.0,16563.0,1.8686438]
[1672587739419,0.55294474,16564.0,16563.0,2.4723988]
[1672587739678,0.55294474,16564.0,16563.0,2.5798338]
[1672587739921,0.55294474,16564.0,16563.0,2.4723988]
[1672587740442,0.55294474,16564.0,16563.0,2.5798338]
[1672587740671,0.55294474,16564.0,16563.0,3.18284459]
[1672587740916,0.55294474,16564.0,16563.0,3.07540959]
[1672587741158,0.55294474,16564.0,16563.0,3.18284459]
[1672587741409,0.55294474,16564.0,16563.0,3.07540959]
[1672587741901,0.55294474,16564.0,16563.0,3.18284459]
[1672587742142,0.55294474,16564.0,16563.0,3.07540959]
[1672587742674,0.55294474,16564.0,16563.0,3.18284459]
[1672587745193,0.55294474,16564.0,16563.0,3.07540959]
[1672587745458,0.55294474,16564.0,16563.0,2.57540959]
[1672587745722,0.55294474,16564.0,16563.0,1.97165459]
[1672587749459,0.55294474,16564.0,16563.0,1.97157148]
[1672587752771,0.55294474,16564.0,16563.0,1.52975822]
[1672587753532,0.55294474,16564.0,16563.0,1.97157148]
[1672587754033,0.55294474,16564.0,16563.0,2.07900648]
[1672587754287,0.55294474,16564.0,16563.0,1.97157148]
[1672587754800,0.55294474,16564.0,16563.0,2.08334654]
[1672587755803,0.55294474,16564.0,16563.0,2.19078154]
[1672587756045,0.55294474,16564.0,16563.0,2.08334654]
[1672587760852,0.55294474,16564.0,16563.0,1.64153328]
[1672587762113,0.55294474,16564.0,16563.0,2.08334654]
[1672587762353,0.55294474,16564.0,16563.0,2.19078154]
[1672587762600,0.55294474,16564.0,16563.0,1.74896828]
[1672587762849,0.55294474,16564.0,16563.0,1.64153328]
[1672587766602,0.009,16564.0,16563.0,1.64153328]
[1672587767353,0.5526443,16564.0,16563.0,1.64153328]
[1672587767603,0.630022,16564.0,16563.0,1.64153328]
[1672587767858,0.009,16564.0,16563.0,1.03777828]
[1672587768111,0.009,16564.0,16563.0,0.71478585]
[1672587771664,0.009,16564.0,16563.0,0.71467339]
[1672587771931,0.55285162,16564.0,16563.0,0.71467339]
[1672587772737,0.009,16564.0,16563.0,0.71467339]
[1672587774247,0.55288473,16564.0,16563.0,0.71467339]
[1672587774501,0.55288473,16564.0,16563.0,0.92364951]
[1672587776280,0.009,16564.0,16563.0,0.92364951]
[1672587776567,0.55291757,16564.0,16563.0,0.92364951]
[1672587776775,0.009,16564.0,16563.0,0.92364951]
[1672587777268,0.55291683,16564.0,16563.0,0.92364951]
[1672587779241,0.54791683,16564.0,16563.0,0.92364951]
[1672587780004,0.004,16564.0,16563.0,0.92364951]
[1672587780255,0.54792813,16564.0,16563.0,0.92364951]
[1672587781520,0.004,16564.0,16563.0,0.92364951]
[1672587787085,0.004,16564.0,16563.0,1.03108451]
[1672587789580,0.004,16564.0,16563.0,1.47289777]
[1672587789821,0.54794797,16564.0,16563.0,1.47289777]
[1672587790870,0.54794797,16564.0,16563.0,1.03108451]
[1672587791124,0.54794797,16564.0,16563.0,0.92364951]
[1672587795690,0.547941,16564.0,16563.0,0.92364951]
[1672587802293,0.547941,16564.0,16563.0,0.92354125]
[1672587804991,0.004,16564.0,16563.0,0.92354125]
[1672587805239,0.54794766,16564.0,16563.0,0.92354125]
[1672587814962,0.54794766,16564.0,16563.0,1.36535451]
[1672587815731,0.54794766,16564.0,16563.0,0.92354125]
[1672587822375,0.54883618,16564.0,16563.0,0.92354125]
[1672587822618,0.54794766,16564.0,16563.0,0.92354125]
[1672587822871,0.54794766,16564.0,16563.0,0.92345864]
[1672587830653,0.004,16564.0,16563.0,0.92345864]
[1672587838458,0.00488852,16564.0,16563.0,0.92345864]
[1672587838956,0.004,16564.0,16563.0,0.92345864]
[1672587846749,0.54794609,16564.0,16563.0,0.92345864]
[1672587847254,0.004,16564.0,16563.0,0.92338615]
[1672587847755,0.54794117,16564.0,16563.0,0.92338615]
[1672587848059,0.004,16564.0,16563.0,0.92338615]
[1672587848785,0.54793872,16564.0,16563.0,0.92338615]
[1672587849287,0.004,16564.0,16563.0,0.92338615]
[1672587849780,0.00488852,16564.0,16563.0,0.92338615]
[1672587850286,0.004,16564.0,16563.0,0.92338615]
[1672587859071,0.00488852,16564.0,16563.0,0.92338615]
[1672587859339,0.004,16564.0,16563.0,0.92338615]
[1672587869566,0.004,16564.0,16563.0,1.03082115]
[1672587870079,0.004,16564.0,16563.0,1.0307145]
[1672587880105,0.004,16564.0,16563.0,0.9232795]
[1672587880607,0.004,16564.0,16563.0,1.0307145]
[1672587880852,0.004,16564.0,16563.0,0.9232795]
[1672587881097,0.004,16564.0,16563.0,1.0307145]
[1672587883553,0.004,16564.0,16563.0,0.9232795]
[1672587883797,0.004,16564.0,16563.0,1.0307145]
[1672587888890,0.00488852,16564.0,16563.0,1.0307145]
[1672587889135,0.004,16564.0,16563.0,0.9232795]
[1672587891630,0.004,16564.0,16563.0,1.0307145]
[1672587892084,0.00390474,16564.0,16563.0,1.0307145]
[1672587893898,0.00390474,16564.0,16563.0,0.9232795]
[1672587894398,0.00390474,16564.0,16563.0,1.0307145]
[1672587894644,0.00390474,16564.0,16563.0,0.9232795]
[1672587895133,0.00390474,16564.0,16563.0,1.0307145]
[1672587895376,0.00390474,16564.0,16563.0,0.9232795]
[1672587895617,0.00390474,16564.0,16563.0,1.0307145]
[1672587897608,0.54792793,16564.0,16563.0,1.0307145]
[1672587897852,0.00390474,16564.0,16563.0,1.0307145]
[1672587898339,0.54791767,16564.0,16563.0,1.0307145]
[1672587898636,0.54791955,16564.0,16563.0,1.0307145]
[1672587899632,0.54791955,16564.0,16563.0,0.9232795]
[1672587899876,0.54791955,16564.0,16563.0,1.0307145]
[1672587900125,0.54791955,16564.0,16563.0,0.9232795]
[1672587900352,0.54791955,16564.0,16563.0,1.5270345]
[1672587900608,0.54791955,16564.0,16563.0,1.96884776]
[1672587901131,0.54791955,16564.0,16563.0,1.5270345]
[1672587904655,0.54791955,16564.0,16563.0,1.96884776]
[1672587907640,0.54791955,16564.0,16563.0,1.5270345]
[1672587908100,0.54791955,16564.0,16563.0,1.96884776]
[1672587911549,0.54791955,16564.0,16563.0,1.5270345]
[1672587911795,1.16894155,16564.0,16563.0,1.5270345]
[1672587912322,0.54791955,16564.0,16563.0,1.5270345]
[1672587914352,0.54791955,16564.0,16563.0,1.96884776]
[1672587915275,0.54791955,16564.0,16563.0,1.52691572]
[1672587915739,1.16894155,16564.0,16563.0,1.52691572]
[1672587917814,0.54791955,16564.0,16563.0,1.52691572]
[1672587919245,0.54791955,16564.0,16563.0,1.96872898]
[1672587919766,0.54791955,16564.0,16563.0,2.07616398]
[1672587921780,0.00390474,16564.0,16563.0,1.96872898]
[1672587922038,0.54791955,16564.0,16563.0,1.96872898]
[1672587923813,0.00390474,16564.0,16563.0,1.96872898]
[1672587924054,0.54791955,16564.0,16563.0,1.96872898]
[1672587924571,0.00390474,16564.0,16563.0,1.96872898]
[1672587925074,0.54791955,16564.0,16563.0,1.52691572]
[1672587925315,0.54791955,16564.0,16563.0,1.96872898]
[1672587925316,0.00390474,16564.0,16563.0,1.96872898]
[1672587925824,0.54791955,16564.0,16563.0,1.52691572]
[1672587926078,0.00390474,16564.0,16563.0,1.52691572]
[1672587926347,0.54791955,16564.0,16563.0,1.52691572]
[1672587934018,0.54791955,16564.0,16563.0,1.96872898]
[1672587935163,0.54791955,16564.0,16563.0,1.52691572]
[1672587936434,0.54791955,16564.0,16563.0,1.52682683]
[1672587940784,0.54791955,16564.0,16563.0,1.96864009]
[1672587941227,0.54791955,16564.0,16563.0,2.07607509]
[1672587942684,0.54791955,16564.0,16563.0,1.63426183]
[1672587942935,0.54791955,16564.0,16563.0,1.52682683]
[1672587945976,1.16894155,16564.0,16563.0,1.52682683]
[1672587947208,0.54791955,16564.0,16563.0,1.52682683]
[1672587947495,1.16894155,16564.0,16563.0,1.52682683]
[1672587949259,0.54791955,16564.0,16563.0,1.52682683]
[1672587951556,1.16894155,16564.0,16563.0,1.52682683]
[1672587953435,0.54791955,16564.0,16563.0,1.52682683]
[1672587954414,0.54791955,16564.0,16563.0,0.92307183]
[1672587957635,0.54791955,16564.0,16563.0,0.92298829]
[1672587960540,1.16894155,16564.0,16563.0,0.92298829]
[1672587961756,0.54791955,16564.0,16563.0,0.92298829]
[1672587962491,1.16894155,16564.0,16563.0,0.92298829]
[1672587964158,0.54791955,16564.0,16563.0,1.36480155]
[1672587964402,0.54791955,16564.0,16563.0,1.52674329]
[1672587966943,0.54791955,16564.0,16563.0,1.96855655]
[1672587967206,0.54791955,16564.0,16563.0,2.07599155]
[1672587967452,0.54791955,16564.0,16563.0,1.96855655]
[1672587968182,0.54791955,16564.0,16563.0,2.07599155]
[1672587968442,0.54791955,16564.0,16563.0,1.96855655]
[1672587969042,0.54791955,16564.0,16563.0,1.52674329]
[1672587970920,0.54791955,16564.0,16563.0,1.96855655]
[1672587971181,0.00390474,16564.0,16563.0,2.87417155]
[1672587971400,0.4570999,16564.0,16563.0,2.43235829]
[1672587971666,0.4570999,16564.0,16563.0,2.53979329]
[1672587971919,0.4570999,16564.0,16563.0,2.57231155]
[1672587972167,0.00390474,16564.0,16563.0,2.67974655]
[1672587972914,0.45709871,16564.0,16563.0,2.67974655]
[1672587973165,0.00390474,16564.0,16563.0,2.67974655]
[1672587973420,0.45706254,16564.0,16563.0,2.67974655]
[1672587978576,0.81950726,16564.0,16563.0,2.67974655]
[1672587979555,0.81950726,16564.0,16563.0,2.67966798]
[1672587980566,0.81950726,16564.0,16563.0,2.57223298]
[1672587981062,0.81950726,16564.0,16563.0,2.67966798]
[1672587982821,0.81950726,16564.0,16563.0,2.57223298]
[1672587983077,0.81950726,16564.0,16563.0,2.67966798]
[1672587984298,0.81950726,16564.0,16563.0,2.57223298]
[1672587984512,0.81950726,16564.0,16563.0,2.67966798]
[1672587984975,0.81950726,16564.0,16563.0,2.57223298]
[1672587985318,0.81950726,16564.0,16563.0,2.67966798]
[1672587985556,0.81950726,16564.0,16563.0,2.57223298]
[1672587985807,0.81950726,16564.0,16563.0,2.67966798]
[1672587986050,1.09124777,16564.0,16563.0,2.57223298]
[1672587987284,0.63808997,16564.0,16563.0,2.57223298]
[1672587987772,0.63808997,16564.0,16563.0,2.67966798]
[1672587990990,0.63808997,16564.0,16563.0,2.57223298]
[1672587991241,0.63808997,16564.0,16563.0,2.67966798]
[1672587991487,0.63808997,16564.0,16563.0,3.27223298]
[1672587991740,0.63808997,16564.0,16563.0,3.67966798]
[1672587993024,0.81922063,16564.0,16563.0,3.67966798]
[1672587993289,0.81922063,16564.0,16563.0,4.28342298]
[1672587993536,0.45677591,16564.0,16563.0,4.28342298]
[1672587996541,0.63808997,16564.0,16563.0,4.28342298]
[1672587997276,0.81920732,16564.0,16563.0,4.28342298]
[1672587998825,0.81920732,16564.0,16563.0,3.58342298]
[1672587999315,0.81920732,16564.0,16563.0,4.28342298]
[1672587999316,0.4567626,16564.0,16563.0,4.28342298]
[1672588000332,0.4567626,16564.0,16563.0,4.28332558]
[1672588003066,0.81920732,16564.0,16563.0,4.28332558]
[1672588003321,0.63808997,16564.0,16563.0,4.28332558]
[1672588004807,0.63808997,16564.0,16563.0,3.98332558]
[1672588005056,0.63808997,16564.0,16563.0,4.28332558]
[1672588009069,0.63808997,16564.0,16563.0,3.58332558]
[1672588010019,0.63808997,16564.0,16563.0,4.28332558]
[1672588014322,1.09124777,16564.0,16563.0,3.98332558]
[1672588014562,0.81950726,16564.0,16563.0,3.98332558]
[1672588015543,0.81950726,16564.0,16563.0,3.87589058]
[1672588016015,0.81950726,16564.0,16563.0,3.17589058]
[1672588016760,0.81950726,16564.0,16563.0,3.47589058]
[1672588017003,1.09140156,16564.0,16563.0,4.28332558]
[1672588017259,0.81950726,16564.0,16563.0,4.28332558]
[1672588018253,1.09141527,16564.0,16563.0,4.28332558]
[1672588019520,0.63825747,16564.0,16563.0,4.28332558]
[1672588020006,1.09141527,16564.0,16563.0,4.28332558]
[1672588021230,0.81950726,16564.0,16563.0,4.28332558]
[1672588021488,1.09143364,16564.0,16563.0,4.28332558]
[1672588022753,0.81950726,16564.0,16563.0,4.28332558]
[1672588023029,0.81950726,16564.0,16563.0,3.58332558]
[1672588023296,1.09144933,16564.0,16563.0,3.58332558]
[1672588023791,0.81950726,16564.0,16563.0,3.4758131]
[1672588024016,0.81950726,16564.0,16563.0,4.1758131]
[1672588024226,0.81950726,16564.0,16563.0,4.2832481]
[1672588024468,1.09144852,16564.0,16563.0,4.2832481]
[1672588025202,0.81950726,16564.0,16563.0,4.2832481]
[1672588026807,1.09146096,16564.0,16563.0,4.2832481]
[1672588027315,0.81950726,16564.0,16563.0,4.2832481]
[1672588027819,1.09147053,16564.0,16563.0,4.2832481]
[1672588028077,1.09147058,16564.0,16563.0,4.2832481]
[1672588028590,0.81950726,16564.0,16563.0,4.2832481]
[1672588030603,0.81950726,16564.0,16563.0,3.5832481]
[1672588031116,0.81950726,16564.0,16563.0,4.2832481]
[1672588031117,1.09147872,16564.0,16563.0,4.2832481]
[1672588031919,0.81950726,16564.0,16563.0,4.2832481]
[1672588032130,0.6383194,16564.0,16563.0,4.2832481]
[1672588035412,0.81958563,16564.0,16563.0,4.2832481]
[1672588035709,0.6383194,16564.0,16563.0,4.2832481]
[1672588037139,0.81957692,16564.0,16563.0,4.2832481]
[1672588038439,0.4571322,16564.0,16563.0,4.2832481]
[1672588038676,0.4571322,16564.0,16563.0,3.4758131]
[1672588039944,0.4571322,16564.0,16563.0,4.1758131]
[1672588040195,0.4571322,16564.0,16563.0,4.30151905]
[1672588044021,0.4571322,16564.0,16563.0,4.19408405]
[1672588045047,0.4571322,16564.0,16563.0,4.30151905]
[1672588045048,0.18516226,16564.0,16563.0,4.30151905]
[1672588045265,0.18516226,16564.0,16563.0,4.19408405]
[1672588046291,0.18516226,16564.0,16563.0,4.30151905]
[1672588046536,0.18516226,16564.0,16563.0,4.19408405]
[1672588047037,0.4571322,16564.0,16563.0,4.1758131]
[1672588048039,0.6383194,16564.0,16563.0,3.87569972]
[1672588048297,0.6383194,16564.0,16563.0,3.43388646]
[1672588048544,0.6383194,16564.0,16563.0,2.73388646]
[1672588048788,1.0914772,16564.0,16563.0,2.73388646]
[1672588049031,0.81950726,16564.0,16563.0,2.73388646]
[1672588049279,0.81950726,16564.0,16563.0,2.84132146]
[1672588050021,0.81950726,16564.0,16563.0,2.73388646]
[1672588051029,1.09131945,16564.0,16563.0,2.73388646]
[1672588051276,0.63816165,16564.0,16563.0,2.73388646]
[1672588052262,1.09131945,16564.0,16563.0,2.73388646]
[1672588052508,0.81950726,16564.0,16563.0,2.73388646]
[1672588054234,0.81950726,16564.0,16563.0,2.6221114]
[1672588054492,0.80530528,16564.0,16563.0,1.41648612]
[1672588054752,0.80530528,16564.0,16563.0,0.603755]
[1672588054753,0.89616229,16564.0,16563.0,0.603755]
[1672588054997,0.89527377,16564.0,16563.0,0.7292075]
[1672588055525,0.35214748,16564.0,16563.0,0.7292075]
[1672588055769,0.89616229,16564.0,16563.0,0.7292075]
[1672588056290,0.89527377,16564.0,16563.0,0.7292075]
[1672588057038,0.35125896,16564.0,16563.0,0.7292075]
[1672588057531,0.35214748,16564.0,16563.0,0.7292075]
[1672588057798,0.35125896,16564.0,16563.0,0.7292075]
[1672588058586,0.89616229,16564.0,16563.0,0.7292075]
[1672588058831,0.89527377,16564.0,16563.0,0.7292075]
[1672588059091,0.35125896,16564.0,16563.0,0.7292075]
[1672588059351,1.51629577,16564.0,16563.0,0.7292075]
[1672588059601,1.51718429,16564.0,16563.0,0.7292075]
[1672588059818,1.51718429,16564.0,16563.0,0.1254525]
[1672588060328,0.89616229,16564.0,16563.0,0.1254525]
[1672588061393,0.89527377,16564.0,16563.0,0.1254525]
[1672588061911,0.89616229,16564.0,16563.0,0.1254525]
[1672588062411,0.89527377,16564.0,16563.0,0.1254525]
[1672588062907,1.51629577,16564.0,16563.0,0.1254525]
[1672588065411,1.51718429,16564.0,16563.0,0.1254525]
[1672588071364,1.51718429,16564.0,16563.0,0.1253633]
[1672588084835,1.51711333,16564.0,16563.0,0.13789963]
[1672588086048,1.51622481,16564.0,16563.0,0.13789963]
[1672588086864,0.89520281,16564.0,16563.0,0.13789963]
[1672588087867,1.51622481,16564.0,16563.0,0.13789963]
[1672588089841,1.51711333,16564.0,16563.0,0.13789963]
[1672588090088,1.51622481,16564.0,16563.0,0.13789963]
[1672588091354,0.97221,16564.0,16563.0,0.13789963]
[1672588093068,0.97309852,16564.0,16563.0,0.13789963]
[1672588093582,0.97221,16564.0,16563.0,0.13789963]
[1672588094083,0.97221,16564.0,16563.0,0.1253633]
[1672588095068,1.58385965,16564.0,16563.0,0.1253633]
[1672588099367,1.58474817,16564.0,16563.0,0.1253633]
[1672588099859,1.58385965,16564.0,16563.0,0.1253633]
[1672588100590,1.58474817,16564.0,16563.0,0.1253633]
[1672588101100,1.58385965,16564.0,16563.0,0.1253633]
[1672588101345,1.575928,16564.0,16563.0,0.1253633]
[1672588101595,1.575928,16564.0,16563.0,0.19615155]
[1672588102850,1.575928,16564.0,16563.0,0.1253633]
[1672588104840,1.57681652,16564.0,16563.0,0.1253633]
[1672588105050,1.575928,16564.0,16563.0,0.1253633]
[1672588105948,1.57681652,16564.0,16563.0,0.1253633]
[1672588106417,1.575928,16564.0,16563.0,0.1253633]
[1672588106921,1.57681652,16564.0,16563.0,0.1253633]
[1672588107137,1.57681652,16564.0,16563.0,0.12525153]
[1672588110347,1.575928,16564.0,16563.0,0.12525153]
[1672588112171,1.57585122,16564.0,16563.0,0.12525153]
[1672588113838,1.57673974,16564.0,16563.0,0.12525153]
[1672588114357,1.57585122,16564.0,16563.0,0.12525153]
[1672588114644,2.18742997,16564.0,16563.0,0.12525153]
[1672588114882,2.18831849,16564.0,16563.0,0.12525153]
[1672588115388,2.18831849,16564.0,16563.0,0.13777668]
[1672588115650,1.57673974,16564.0,16563.0,0.13777668]
[1672588116394,2.18830506,16564.0,16563.0,0.13777668]